[Event "Czech Championship 2022"]
[Site "Usti nad Labem"]
[Date "2022.05.16"]
[Round "3.19"]
[White "Ret, Adam Josef"]
[Black "Jun, Rudolf"]
[Result "0-1"]
[ECO "A30"]
[WhiteElo "2093"]
[BlackElo "2183"]
[Annotator "TA"]
[PlyCount "98"]
[EventDate "2022.05.12"]
[EventType "swiss"]
[EventCountry "CZE"]
[SourceTitle "playchess.com"]
[Source "ChessBase"]
[SourceQuality "1"]
[TimeControl "40/5400+30:1800+30"]

{[%evp 18,98,25,0,0,0,0,-18,-10,-17,0,0,0,0,0,-2,0,-2,0,0,0,0,0,0,14,-12,0,-13,-9,-17,-11,-10,0,0,0,0,16,0,33,37,33,-13,81,-8,-8,-8,-8,-8,-8,-335,-290,-205,-210,-185,-210,-207,-206,-177,-168,-159,-102,-94,-57,-752,-719,-645,-588,-777,-68,-775,-750,-711,-689,-664,-637,-580,-370,-1153,-1096,-1848,-1763,-1315,-1203]} 1. d4 {[%emt 0:00:04]} Nf6 {[%emt 0:00:07]} 2. Nf3 {[%emt 0:00:05]} e6 {[%emt 0:01:37]} 3. c4 {[%emt 0:00:44]} b6 {[%emt 0:00:15]} 4. g3 {[%emt 0:00:48]} Bb7 {[%emt 0:00:08]} 5. Bg2 {[%emt 0:00:05]} Be7 {[%emt 0:01:59]} 6. O-O {[%emt 0:00:44]} c5 {[%emt 0:01:06]} 7. Nc3 {[%emt 0:00:59]} cxd4 {[%emt 0:00:41]} 8. Nxd4 {[%emt 0:00:58]} Bxg2 {[%emt 0:00:29]} 9. Kxg2 {[%emt 0:00:20]} O-O {[%emt 0:00:58]} 10. b3 {[%emt 0:01:47]} d5 {[%emt 0:01:50] A30: Symmetrical English: Double Fianchetto and Hedgehog.} 11. cxd5 {[%emt 0:01:02]} Nxd5 {[%emt 0:00:09]} 12. Nxd5 {[%emt 0:02:10]} Qxd5+ {[%emt 0:00:10] The position is equal.} 13. Nf3 {[%emt 0:00:03] [#]} Qf5 $146 {[%emt 0:05:20]} ({Predecessor:} 13... Qe4 14. Be3 Rd8 15. Qb1 Qb7 16. Kg1 h6 17. Bd4 Nc6 {½-½ (46) Lye,L (2321)-Nguyen,N (2641) Makati 2018}) 14. Bb2 {[%emt 0:02:05]} Rd8 {[%emt 0:01:37]} 15. Qb1 {[%emt 0:00:17]} Qxb1 {[%emt 0:01:31]} 16. Raxb1 {[%emt 0:00:06]} f6 {[%emt 0:00:37]} 17. Rfd1 {[%emt 0:01:06]} Rxd1 {[%emt 0:01:01]} 18. Rxd1 {[%emt 0:00:05]} Kf7 {[%emt 0:00:16]} 19. Rc1 {[%emt 0:03:49] And now Rc8 would win.} Na6 {[%emt 0:00:57]} 20. Nd4 {[%emt 0:00:33]} Rd8 {[%emt 0:03:38]} 21. Kf1 {[%emt 0:04:11]} Bc5 {[%emt 0:05:52]} 22. Nf3 {[%emt 0:06:04]} e5 {[%emt 0:00:30][%cal Be6e5,Be5e4][%mdl 32]} 23. a3 {[%emt 0:02:17]} e4 {[%emt 0:02:06]} 24. Ne1 {[%emt 0:00:55]} Rd2 {[%emt 0:03:20]} 25. Nc2 {[%emt 0:01:50]} b5 {[%emt 0:06:03]} 26. Ke1 {[%emt 0:02:55]} Rd5 {[%emt 0:00:33]} 27. Bc3 {[%emt 0:04:16]} Rh5 {[%emt 0:03:21]} 28. h4 {[%emt 0:02:02]} g5 {[%emt 0:00:55]} 29. hxg5 {[%emt 0:04:31]} (29. b4 $14 Bb6 30. Bd4) 29... fxg5 {[%emt 0:04:20] [#]} (29... Rh1+ $11 {keeps the balance.} 30. Kd2 Rxc1 31. Kxc1 Bxf2) 30. Bd4 {[%emt 0:01:39]} (30. Kd2 $1 $16) 30... Rh1+ $11 {[%emt 0:03:11]} 31. Kd2 {[%emt 0:00:06]} Rxc1 {[%emt 0:00:55]} 32. Kxc1 {[%emt 0:00:03][%mdl 4096] Endgame KBN-KBN} h5 {[%emt 0:00:27]} 33. b4 $2 {[%emt 0:00:19][%mdl 8192]} (33. Kd2 $11 {and White is okay.}) 33... Bxd4 $19 {[%emt 0:02:34]} 34. Nxd4 {[%emt 0:00:05] KN-KN} h4 {[%emt 0:00:21]} 35. gxh4 {[%emt 0:01:06]} gxh4 {[%emt 0:00:08] ...Kg6 is the strong threat.} 36. Nf5 {[%emt 0:00:45]} ({Of course not} 36. Nxb5 Kf6 37. Nc3 Ke5 $17) 36... h3 {[%emt 0:04:50]} 37. Nd6+ {[%emt 0:00:40]} Ke6 {[%emt 0:00:37]} 38. Nxe4 {[%emt 0:00:07] [#]} h2 {[%emt 0:00:09]} ({Black should try} 38... Kd5 $1 {[%cal Rd5e4]} 39. f3 Kc4) 39. Ng3 $17 {[%emt 0:00:05]} Kd5 {[%emt 0:00:26][%mdl 1024] Hoping for ...Kc4. Black has strong compensation.} 40. Kc2 $2 {[%emt 0:02:18][%mdl 8192]} (40. Kd2 $15) 40... Kc4 $19 {[%emt 0:01:47]} 41. f4 {[%emt 0:32:04]} Nc7 {[%emt 0:31:58]} 42. Kd2 {[%emt 0:00:42]} Nd5 $2 {[%emt 0:02:20]} (42... Kb3 $19 43. Nh1 Kxa3) 43. e3 $2 {[%emt 0:00:29][%mdl 8192]} (43. f5 $15) 43... Kb3 {[%emt 0:19:13]} 44. f5 {[%emt 0:03:09]} Kxa3 {[%emt 0:01:57] aiming for ...Nf6.} 45. e4 {[%emt 0:01:07]} Nf6 {[%emt 0:05:41][%cal Of6e4] Strongly threatening ...Nxe4+!} 46. Kd3 {[%emt 0:00:18] Black must now prevent e5.} Kxb4 {[%emt 0:01:25]} 47. e5 $2 {[%emt 0:01:38] [#]} (47. Kd4 Nh5 48. Nh1) 47... Nh5 $1 {[%emt 0:01:27][%mdl 512] Black is clearly winning.} 48. Nh1 {[%emt 0:05:12]} (48. f6 Nxg3) 48... Kc5 {[%emt 0:00:27]} 49. Ke4 {[%emt 0:02:15]} Ng7 {[%emt 0:00:49] Weighted Error Value: White=0.82/Black=0.23 (precise)} 0-1

[Event "Czech Championship 2022"]
[Site "Usti nad Labem"]
[Date "2022.05.16"]
[Round "3.20"]
[White "Soucek, Petr"]
[Black "Jirasko, Miroslav"]
[Result "1-0"]
[ECO "D00"]
[WhiteElo "2177"]
[BlackElo "2091"]
[Annotator "TA"]
[PlyCount "97"]
[EventDate "2022.05.12"]
[EventType "swiss"]
[EventCountry "CZE"]
[SourceTitle "playchess.com"]
[Source "ChessBase"]
[SourceQuality "1"]
[TimeControl "40/5400+30:1800+30"]

{[%evp 9,97,0,48,46,50,62,78,55,51,58,96,101,105,96,102,103,98,99,97,70,98,47,51,54,130,139,141,141,131,127,151,143,154,134,230,166,175,160,162,174,166,165,317,306,337,333,367,371,366,326,382,358,383,410,852,627,617,591,797,772,644,525,518,506,629,617,560,550,886,772,935,720,731,681,2197,1723,3537,707,29967,29965,6729,9739,29970,29971,29969,7309,29983,29984,29984,29985]} 1. d4 {[%emt 0:00:02]} Nf6 {[%emt 0:00:05]} 2. Nc3 {[%emt 0:00:04]} d5 {[%emt 0:00:04]} 3. Bf4 {[%emt 0:00:06]} c5 {[%emt 0:05:48]} 4. e4 {[%emt 0:00:46]} dxe4 {[%emt 0:05:51]} 5. dxc5 {[%emt 0:03:13]} Qxd1+ {[%emt 0:05:13]} (5... Nbd7 $11 {should be considered.}) 6. Rxd1 $14 {[%emt 0:00:09] D00: 1 d4 d5: Unusual lines.} a6 {[%emt 0:00:11] Inhibits Nb5.} 7. Nge2 {[%emt 0:14:26][%cal Bg1e2,Be2d4,Bd4c6][%mdl 32]} Bf5 {[%emt 0:20:47] [#]} 8. Nd4 $146 {[%emt 0:03:35] White is better.} ({Predecessor:} 8. Ng3 Bg6 9. h4 h6 10. h5 Bh7 11. b4 Nc6 12. a3 e6 13. Bc4 Be7 14. O-O {1-0 (29) Niemann,H (2465)-Svetushkin,D (2515) Chess.com INT 2020}) 8... Bg4 {[%emt 0:12:13]} 9. Rd2 $40 {[%emt 0:08:17][%mdl 128] White attacks.} Nbd7 {[%emt 0:00:32]} 10. c6 {[%emt 0:11:58]} bxc6 {[%emt 0:00:07]} 11. Nxc6 {[%emt 0:00:10]} e6 {[%emt 0:09:31]} 12. h3 {[%emt 0:12:59]} Bh5 {[%emt 0:01:32]} 13. Be3 {[%emt 0:05:24] 0x0.001ab44959b0dp-1022s more active pieces. The black rooks are badly placed.} Bc5 {[%emt 0:03:18]} 14. Bxc5 {[%emt 0:01:31]} Nxc5 {[%emt 0:00:07]} 15. g4 {[%emt 0:02:02]} (15. Rd4 $16) 15... Bg6 {[%emt 0:00:36]} 16. Bg2 {[%emt 0:00:41]} h5 {[%emt 0:17:02] White leaves nothing to chance now.} ({Better is} 16... Nfd7 $14) 17. Ne5 $16 {[%emt 0:03:48]} hxg4 {[%emt 0:02:32]} 18. hxg4 {[%emt 0:01:02]} Rxh1+ {[%emt 0:00:41]} 19. Bxh1 {[%emt 0:00:07] aiming for g5.} Rb8 {[%emt 0:04:32]} 20. b3 {[%emt 0:00:45]} Bh7 {[%emt 0:02:25]} 21. g5 {[%emt 0:01:38]} Nh5 {[%emt 0:00:29]} (21... Nfd7 $16 {was necessary.}) 22. g6 {[%emt 0:00:29]} Bxg6 {[%emt 0:00:22]} 23. Nxg6 {[%emt 0:00:10]} fxg6 {[%emt 0:01:03]} 24. Nxe4 {[%emt 0:00:04]} Nxe4 {[%emt 0:00:37]} 25. Bxe4 $18 {[%emt 0:00:07][%mdl 4096] Endgame KRB-KRN} Nf4 {[%emt 0:00:14]} (25... Ke7 26. Rd4 (26. Bxg6 Nf4 $16) 26... a5 27. Bxg6 Nf6) 26. Rd6 {[%emt 0:00:24]} Ke7 {[%emt 0:01:04]} 27. Rxa6 {[%emt 0:00:08]} Kf6 {[%emt 0:00:05]} 28. f3 {[%emt 0:01:56]} Rh8 {[%emt 0:00:29]} 29. Kd2 {[%emt 0:01:22]} Rh2+ {[%emt 0:00:17]} 30. Kc3 {[%emt 0:02:17]} g5 {[%emt 0:00:23]} 31. b4 {[%emt 0:00:59] [#] Strongly threatening b5.} Re2 {[%emt 0:00:07]} (31... g4 $142 32. fxg4 Ke5) 32. Kd4 {[%emt 0:03:36]} Rd2+ {[%emt 0:00:44]} 33. Bd3 {[%emt 0:01:48]} Nxd3 {[%emt 0:01:45]} 34. cxd3 {[%emt 0:00:06] KR-KR} Rb2 {[%emt 0:00:06]} 35. a3 {[%emt 0:00:31][%cal Ba2a3,Ba3a4][%mdl 32]} Kf5 {[%emt 0:00:16]} 36. Ke3 {[%emt 0:00:19]} Rb3 {[%emt 0:00:57]} 37. Ra5+ {[%emt 0:01:20]} e5 {[%emt 0:00:06]} 38. b5 {[%emt 0:00:43] [#] Black must now prevent Kd2.} g4 {[%emt 0:00:22]} 39. fxg4+ {[%emt 0:00:07]} Kxg4 {[%emt 0:00:06]} 40. a4 {[%emt 0:00:31]} Kf5 {[%emt 0:00:33]} 41. Ra8 {[%emt 0:30:59] And now Rb8 would win.} g5 {[%emt 0:30:50]} 42. Rb8 {[%emt 0:01:38]} e4 {[%emt 0:01:43]} 43. Rf8+ {[%emt 0:04:32]} (43. b6 $142 Rxd3+ 44. Ke2) 43... Kg4 {[%emt 0:00:17]} 44. Kxe4 {[%emt 0:00:25]} Rb4+ {[%emt 0:00:05]} 45. Kd5 {[%emt 0:00:08] Threatening mate with Kc5.} Rxa4 {[%emt 0:00:22]} 46. b6 {[%emt 0:00:44][%cal Bb5b6,Bb6b7][%mdl 32]} Ra5+ {[%emt 0:02:01]} 47. Kc6 {[%emt 0:00:51] Intending b7 and mate.} Ra3 {[%emt 0:00:05]} 48. b7 {[%emt 0:00:54]} Rc3+ {[%emt 0:00:06]} 49. Kd5 {[%emt 0:00:39] Weighted Error Value: White=0.21 (precise) /Black=0.83} 1-0

[Event "Czech Championship 2022"]
[Site "Usti nad Labem"]
[Date "2022.05.16"]
[Round "3.21"]
[White "Sura, Jaroslav"]
[Black "Vojta, Jakub"]
[Result "0-1"]
[ECO "B23"]
[WhiteElo "2010"]
[BlackElo "2396"]
[Annotator "TA"]
[PlyCount "56"]
[EventDate "2022.05.12"]
[EventType "swiss"]
[EventCountry "CZE"]
[SourceTitle "playchess.com"]
[Source "ChessBase"]
[SourceQuality "1"]
[TimeControl "40/5400+30:1800+30"]

{[%evp 18,55,-16,-29,-29,-73,-63,-102,-58,-67,-33,-47,-38,-37,-32,-36,-33,-46,-38,-56,-43,-87,-94,-97,-82,-468,-468,-856,-825,-732,-364,-1033,-1038,-910,-887,-29994,-29995,-29995,-29996,-29999]} 1. e4 {[%emt 0:03:57]} c5 {[%emt 0:00:18]} 2. Nc3 {[%emt 0:00:06]} g6 {[%emt 0:00:05]} 3. f4 {[%emt 0:00:57]} Bg7 {[%emt 0:00:07]} 4. Nf3 {[%emt 0:00:03]} Nc6 {[%emt 0:00:15]} 5. Bb5 {[%emt 0:00:51]} Nd4 {[%emt 0:00:08]} 6. a4 {[%emt 0:00:27]} a6 {[%emt 0:00:07]} 7. Bd3 {[%emt 0:00:11]} Nf6 {[%emt 0:01:10]} 8. Nxd4 {[%emt 0:03:27]} cxd4 {[%emt 0:00:03]} 9. Ne2 {[%emt 0:00:06]} d6 {[%emt 0:00:40]} 10. O-O {[%emt 0:04:52]} O-O {[%emt 0:00:29] B23: Closed Sicilian: Lines without g3.} 11. Kh1 {[%emt 0:02:31] [#]} e5 $1 {[%emt 0:07:03]} 12. c3 {[%emt 0:03:51] [#]} exf4 $146 {[%emt 0:04:17] Black is better.} ({Predecessor:} 12... dxc3 13. dxc3 d5 14. exd5 Qxd5 15. fxe5 Ng4 16. Nf4 Qxe5 17. Qf3 Bf5 18. Bxf5 Qxf5 19. Nd3 {½-½ (19) Nivala,T (2218)-Haapasalo,J (2148) Heinola 2002}) 13. Nxd4 {[%emt 0:16:53]} d5 {[%emt 0:09:46]} ({Much weaker is} 13... Bg4 14. Be2 Bxe2 15. Qxe2 $11) (13... g5 $5 {[%cal Rf8e8]}) 14. exd5 {[%emt 0:09:01]} Nxd5 {[%emt 0:04:25]} (14... Re8 {looks sharper.} 15. Bc4 Bg4 16. Nf3 Nxd5 17. d4 Ne3) 15. Qf3 {[%emt 0:03:54]} Bxd4 {[%emt 0:12:07]} 16. cxd4 {[%emt 0:00:02]} Be6 {[%emt 0:00:29]} 17. b3 {[%emt 0:04:41]} Qd7 {[%emt 0:02:07]} 18. Ba3 {[%emt 0:03:32]} Rfe8 {[%emt 0:01:11]} (18... Bg4 $5 19. Qf2 Rfe8 $11) 19. Bc4 {[%emt 0:01:51]} b5 {[%emt 0:02:10]} 20. axb5 {[%emt 0:03:17]} axb5 {[%emt 0:00:08]} 21. Bxd5 {[%emt 0:00:33][%mdl 8192] Loses the game.} (21. Be2 $17 {is a better chance.}) 21... Bxd5 $19 {[%emt 0:00:27]} ({Worse is} 21... Qxd5 22. Qxf4 Qxb3 23. Bd6 Rxa1 24. Rxa1 $17) 22. Qxf4 {[%emt 0:01:56]} (22. Qd1 $142 b4 23. Bb2) 22... Re2 {[%emt 0:03:57]} 23. Rf2 {[%emt 0:01:38]} Qe7 {[%emt 0:07:29]} 24. b4 $2 {[%emt 0:21:58]} (24. Kg1 b4 25. Bb2 Rxa1+ 26. Bxa1) 24... Re4 {[%emt 0:06:59]} 25. Qg3 {[%emt 0:04:13] [#]} Rxa3 $1 {[%emt 0:00:10][%mdl 512]} 26. Qxa3 {[%emt 0:00:34]} (26. Qb8+ Kg7) 26... Re1+ {[%emt 0:00:02] Black mates.} 27. Rf1 {[%emt 0:00:18] [#]} Qe2 $1 {[%emt 0:00:04][%csl LRd2,LRf1,LRg2][%cal Re2f1]} 28. Rg1 {[%emt 0:06:59]} (28. Qa8+ Kg7) 28... Bxg2# {[%emt 0:00:06] Weighted Error Value: White=1.23/Black=0.24 (precise)} 0-1

[Event "Czech Championship 2022"]
[Site "Usti nad Labem"]
[Date "2022.05.16"]
[Round "3.22"]
[White "Paulus, Vaclav"]
[Black "Babula, Vlastimil jr"]
[Result "0-1"]
[ECO "B23"]
[WhiteElo "2093"]
[BlackElo "2217"]
[Annotator "TA"]
[PlyCount "90"]
[EventDate "2022.05.12"]
[EventType "swiss"]
[EventCountry "CZE"]
[SourceTitle "playchess.com"]
[Source "ChessBase"]
[SourceQuality "1"]
[TimeControl "40/5400+30:1800+30"]

{[%evp 9,90,30,42,-52,-43,-39,-35,-84,-77,-68,0,-31,-39,-35,-43,-107,-100,-108,-77,-81,-39,-57,0,-6,-4,-3,-5,-4,-14,-10,0,0,6,0,150,28,85,66,88,44,87,59,83,31,29,-12,-12,-5,0,-64,-64,-83,-64,-84,-64,-135,-145,-154,-138,-154,-156,-266,-272,-274,-145,-169,-172,-147,0,-93,-53,-452,-461,-461,-450,-417,-412,-458,-452,-427,-445,-559,-564]} 1. e4 {[%emt 0:00:02]} c5 {[%emt 0:00:15]} 2. Nc3 {[%emt 0:00:07]} Nc6 {[%emt 0:00:38]} 3. Bb5 {[%emt 0:00:09]} g6 {[%emt 0:02:35]} 4. Bxc6 {[%emt 0:00:26]} dxc6 {[%emt 0:01:00]} 5. f4 {[%emt 0:00:09]} e5 {[%emt 0:08:41]} 6. Nf3 {[%emt 0:04:23] B23: Closed Sicilian: Lines without g3.} (6. d3 $14) 6... exf4 $15 {[%emt 0:02:41] [#]} 7. d3 $146 {[%emt 0:00:12]} ({Predecessor:} 7. O-O g5 8. Kh1 h6 9. d3 Ne7 10. e5 Bf5 11. g3 fxg3 12. e6 Bxe6 13. Ne4 {0-1 (20) Sciortino,M (2201)-Ivanov,J (2446) Montecatini Terme 2001}) 7... g5 {[%emt 0:19:44]} 8. h4 {[%emt 0:03:43]} (8. Qe2 $15) 8... g4 $17 {[%emt 0:05:25]} 9. Ne5 {[%emt 0:03:50]} Bd6 {[%emt 0:09:01]} (9... Nf6 $1 $15) 10. Nxg4 {[%emt 0:12:35]} ({Wrong is} 10. Bxf4 $2 Qf6 11. Qd2 Ne7 $19) (10. Nc4 $5 {[%cal Re4e5]}) 10... h5 $1 {[%emt 0:00:51]} 11. Nf2 {[%emt 0:01:24]} Ne7 {[%emt 0:03:30]} 12. Qe2 {[%emt 0:02:44]} (12. d4 $1 $15) 12... Be5 {[%emt 0:02:06]} 13. Bd2 {[%emt 0:02:54]} Ng6 {[%emt 0:03:15]} 14. O-O-O {[%emt 0:01:56]} Be6 {[%emt 0:04:01]} 15. Rdf1 $1 {[%emt 0:05:59]} Qd7 {[%emt 0:03:15]} ({Black should try} 15... Qa5 $15) 16. Nh3 $11 {[%emt 0:02:28][%cal Rh3f4]} Bg4 {[%emt 0:00:51] This bishop pair is nice.} 17. Qe1 {[%emt 0:00:25][%cal Rh3f4]} f3 {[%emt 0:01:22]} 18. Rxf3 {[%emt 0:00:50]} Bxf3 {[%emt 0:00:14]} 19. gxf3 {[%emt 0:00:02]} O-O-O {[%emt 0:00:54][%cal Oc5c4]} 20. f4 {[%emt 0:01:35]} Bg7 {[%emt 0:02:47][%cal Oc5c4]} 21. e5 {[%emt 0:01:22]} f5 {[%emt 0:01:36] [#] Inhibits Ne4.} (21... c4 $1 $11) 22. Ng5 {[%emt 0:01:53]} (22. Qg1 $1 $16 {[%cal Rg1g6]} Nf8 23. Qxc5) 22... Rde8 {[%emt 0:02:04]} (22... c4 $11) 23. Qf2 {[%emt 0:02:57]} b6 {[%emt 0:02:59]} 24. Rg1 {[%emt 0:03:46]} Nf8 {[%emt 0:01:06]} 25. Qf3 {[%emt 0:06:00]} Ne6 {[%emt 0:05:43]} 26. Nxe6 {[%emt 0:00:59]} (26. Nd1 $16) 26... Rxe6 $14 {[%emt 0:00:02]} 27. Nb5 {[%emt 0:00:19]} Bf8 {[%emt 0:01:46] Inhibits Nd6+.} 28. Nc3 {[%emt 0:03:09]} Qf7 {[%emt 0:01:27]} 29. Be3 {[%emt 0:04:16]} (29. Nd1 $11) 29... Rg6 $15 {[%emt 0:00:55]} 30. Re1 {[%emt 0:00:45]} Qe6 {[%emt 0:00:54]} 31. Bf2 {[%emt 0:01:26]} Kb8 {[%emt 0:14:22]} 32. Ne2 {[%emt 0:04:16]} (32. b3 $15) 32... Qxa2 $17 {[%emt 0:00:00] Strongly threatening ...Qa1+.} 33. c4 {[%emt 0:00:09]} Qa6 {[%emt 0:00:00]} 34. Ng3 {[%emt 0:01:47] [#]} Qc8 {[%emt 0:00:00]} ({But not} 34... Qa1+ 35. Kc2 Qa4+ 36. Kb1 $14) 35. d4 {[%emt 0:04:40]} (35. Nxh5 $17 {was worth a try.} Be7 36. Nf6) 35... cxd4 $19 {[%emt 0:00:00]} 36. Qd3 {[%emt 0:00:10]} Bh6 {[%emt 0:00:00]} (36... Bb4 $19 37. Re2 Rf8 38. Bxd4 Rd8) 37. Nxf5 $17 {[%emt 0:00:21] Black must now prevent Ne7.} Bxf4+ {[%emt 0:00:00]} 38. Kb1 {[%emt 0:00:15]} Re6 {[%emt 0:00:00] Prevents Ne7.} (38... Rg4 $17 {And now ...c5 would win.} 39. Bxd4 c5) 39. Bxd4 {[%emt 0:01:00]} (39. Nxd4 $11 {keeps the balance.} Rxe5 40. Re4 Rxe4 41. Qxe4) 39... c5 {[%emt 0:01:53]} 40. Nd6 $2 {[%emt 0:00:11][%mdl 8192] Now White is beyond hope.} (40. Bc3 $1 $15) 40... Rxd6 $19 {[%emt 0:00:59]} 41. exd6 {[%emt 0:30:01]} cxd4 {[%emt 0:30:16]} 42. Qxd4 {[%emt 0:00:05] Threatens to win with d7.} Qf5+ {[%emt 0:01:34]} 43. Ka2 {[%emt 0:02:18]} Rd8 {[%emt 0:00:00] Black is clearly winning.} 44. Rf1 {[%emt 0:00:00]} Qa5+ {[%emt 0:00:00]} 45. Kb3 {[%emt 0:00:00]} Bxd6 {[%emt 0:00:00] Weighted Error Value: White=0.47/Black=0.30} 0-1

[Event "Czech Championship 2022"]
[Site "Usti nad Labem"]
[Date "2022.05.16"]
[Round "3.23"]
[White "Hladky, Tadeas"]
[Black "Sykora, Ondrej"]
[Result "1/2-1/2"]
[ECO "C74"]
[WhiteElo "2119"]
[BlackElo "2092"]
[Annotator "TA"]
[PlyCount "139"]
[EventDate "2022.05.12"]
[EventType "swiss"]
[EventCountry "CZE"]
[SourceTitle "playchess.com"]
[Source "ChessBase"]
[SourceQuality "1"]
[TimeControl "40/5400+30:1800+30"]

{[%evp 9,139,31,39,-44,13,18,20,-6,0,0,21,25,12,25,41,0,0,0,39,4,22,10,19,8,19,12,25,20,19,14,42,36,35,37,50,35,35,4,5,2,30,30,30,30,30,30,45,12,3,17,18,0,0,0,0,0,0,0,0,0,0,0,0,0,14,10,10,0,0,0,18,16,15,18,20,14,14,14,13,12,16,22,18,0,3,0,5,0,0,0,0,0,0,0,0,0,0,0,0,0,0,0,0,-8,-8,-8,-8,-8,-8,-8,-8,-8,-8,-8,-9,-12,0,0,0,0,0,-8,-8,-8,0,0,0,0,0,0,0,0]} 1. e4 {[%emt 0:00:04]} e5 {[%emt 0:00:05]} 2. Nf3 {[%emt 0:00:05]} Nc6 {[%emt 0:00:05]} 3. Bb5 {[%emt 0:00:05]} a6 {[%emt 0:00:07]} 4. Ba4 {[%emt 0:00:03]} d6 {[%emt 0:00:25]} 5. c3 {[%emt 0:00:05]} Nf6 {[%emt 0:00:19]} 6. Bc2 {[%emt 0:02:23] C74: Ruy Lopez: Deferred Steinitz: 5 c3 f5.} (6. O-O $14) 6... Bg4 {[%emt 0:00:18]} ({Black should play} 6... d5 $1 $15 7. d4 Bg4) 7. O-O {[%emt 0:00:45]} Be7 {[%emt 0:00:07]} 8. h3 {[%emt 0:00:28]} Bh5 {[%emt 0:00:03]} 9. Re1 {[%emt 0:00:17]} O-O {[%emt 0:00:20]} 10. d3 {[%emt 0:00:13]} d5 {[%emt 0:00:23]} 11. Nbd2 {[%emt 0:02:44] [#]} dxe4 $146 {[%emt 0:01:29]} ({Predecessor:} 11... Bc5 12. Qe2 Re8 13. Nf1 h6 14. g4 Bg6 15. Ng3 d4 16. a3 dxc3 17. bxc3 Nh7 {0-1 (37) Barrio Pareja,E (2061)-Sanz Alonso,F (2410) La Laguna 2009}) 12. Nxe4 {[%emt 0:00:44]} Nxe4 {[%emt 0:00:10]} 13. dxe4 {[%emt 0:00:06]} Bc5 {[%emt 0:05:04]} 14. Qe2 {[%emt 0:09:42]} h6 {[%emt 0:00:52]} 15. Be3 {[%emt 0:00:42]} Bxe3 {[%emt 0:00:35]} 16. Qxe3 {[%emt 0:00:10]} Qe7 {[%emt 0:00:04]} 17. Rad1 {[%emt 0:03:51]} Rad8 {[%emt 0:00:11]} 18. Rd5 {[%emt 0:05:27]} Bxf3 {[%emt 0:05:01]} 19. Qxf3 {[%emt 0:00:05]} Rd6 {[%emt 0:00:20]} 20. Red1 {[%emt 0:02:53]} Rfd8 {[%emt 0:00:15]} 21. Bb3 {[%emt 0:00:46]} Rf6 {[%emt 0:06:56]} 22. Qg4 {[%emt 0:02:39]} Rfd6 {[%emt 0:09:47]} 23. Qf5 {[%emt 0:02:40]} g6 {[%emt 0:02:46]} 24. Qf3 {[%emt 0:12:22]} Kg7 {[%emt 0:00:51]} 25. Rxd6 {[%emt 0:01:07]} Rxd6 {[%emt 0:00:06]} 26. Rxd6 {[%emt 0:00:18]} cxd6 $11 {[%emt 0:00:02][%mdl 4096] Endgame KQB-KQN} 27. Bd5 {[%emt 0:01:29]} Qc7 {[%emt 0:04:34]} 28. Qd3 {[%emt 0:02:00]} Ne7 {[%emt 0:01:19] The position is equal.} 29. Bb3 {[%emt 0:00:51]} Ng8 {[%emt 0:11:35]} 30. g3 {[%emt 0:09:07]} Nf6 {[%emt 0:01:12]} 31. Kg2 {[%emt 0:04:27]} Qc6 {[%emt 0:01:19]} 32. Kf3 {[%emt 0:00:18]} Qd7 {[%emt 0:02:54]} 33. Kg2 {[%emt 0:00:19]} Qc6 {[%emt 0:00:10]} 34. Kf3 {[%emt 0:00:35]} Qd7 {[%emt 0:01:36]} 35. Kg2 {[%emt 0:00:12]} Qc6 {[%emt 0:11:04]} 36. Kf3 {[%emt 0:00:12]} Nh7 {[%emt 0:16:33]} 37. h4 {[%emt 0:02:38]} Nf6 {[%emt 0:01:21]} 38. Qc4 {[%emt 0:01:32]} Qd7 {[%emt 0:01:33]} 39. Kg2 {[%emt 0:00:09]} Ne8 {[%emt 0:01:45]} 40. Qa4 {[%emt 0:02:43]} Qxa4 {[%emt 0:00:39]} 41. Bxa4 {[%emt 0:30:06] KB-KN} Nc7 {[%emt 0:30:05]} 42. Bd7 {[%emt 0:00:36]} Kf8 {[%emt 0:04:12]} 43. Bc8 {[%emt 0:06:03]} b6 {[%emt 0:00:04]} 44. Kf3 {[%emt 0:00:33]} Ke7 {[%emt 0:01:01]} 45. Ke3 {[%emt 0:00:43]} a5 {[%emt 0:02:43]} 46. Kd3 {[%emt 0:03:32]} d5 {[%emt 0:03:49]} 47. exd5 {[%emt 0:05:48]} Nxd5 {[%emt 0:00:39]} 48. Kc4 {[%emt 0:00:05]} Kd6 {[%emt 0:03:14]} 49. Bb7 {[%emt 0:03:14]} Nc7 {[%emt 0:00:47]} 50. a4 {[%emt 0:02:05]} f5 {[%emt 0:01:23]} 51. Bc8 {[%emt 0:03:00][%cal Oh4h5]} Nd5 {[%emt 0:00:00]} 52. Kb5 {[%emt 0:00:00]} Kc7 {[%emt 0:00:00] Prevents Bb7.} 53. Be6 {[%emt 0:00:00]} Nf6 {[%emt 0:00:00] [#] ...Ne4 is the strong threat.} 54. Bf7 {[%emt 0:00:00]} g5 {[%emt 0:00:00]} 55. hxg5 {[%emt 0:00:00]} hxg5 {[%emt 0:00:00]} 56. Bg6 {[%emt 0:00:00]} Ne4 {[%emt 0:00:00]} 57. Kc4 {[%emt 0:00:00]} Kc6 {[%emt 0:00:00]} 58. g4 {[%emt 0:00:00]} Nd6+ {[%emt 0:00:00]} 59. Kd3 {[%emt 0:00:00]} fxg4 {[%emt 0:00:00]} 60. Bh5 {[%emt 0:00:00]} Kd5 {[%emt 0:00:00] [#] And now ...e4+ would win.} 61. b3 {[%emt 0:00:00]} e4+ {[%emt 0:00:00]} 62. Ke2 {[%emt 0:00:00]} g3 {[%emt 0:00:00]} 63. fxg3 {[%emt 0:00:00]} Ke5 {[%emt 0:01:01]} 64. Bg4 {[%emt 0:00:00]} b5 {[%emt 0:00:08]} 65. Bd7 {[%emt 0:00:00]} bxa4 {[%emt 0:00:19]} 66. Bxa4 {[%emt 0:00:00]} Nb7 {[%emt 0:01:37]} 67. b4 {[%emt 0:00:00]} axb4 {[%emt 0:00:06]} 68. cxb4 {[%emt 0:00:00]} Kd4 {[%emt 0:00:05]} 69. Bc6 {[%emt 0:00:00]} Nd6 {[%emt 0:00:33]} 70. b5 {[%emt 0:00:00] Weighted Error Value: White=0.08 (flawless) /Black=0.07 (flawless)} 1/2-1/2